fUSD/lending_fUSD_20260107
["ID","MTS","AMOUNT","RATE_DAILY","PERIOD"]
[400622375,1767748248660,-200.0,0.00039209,2]
[400622376,1767748248670,-200.0,0.00039209,2]
[400622378,1767748248679,-200.0,0.00039209,2]
[400622381,1767748248690,-200.0,0.00039209,2]
[400622383,1767748248699,-200.0,0.00039209,2]
[400622385,1767748248709,-200.0,0.00039209,2]
[400622387,1767748248719,-200.0,0.00039209,2]
[400622389,1767748248728,-200.0,0.00039209,2]
[400622391,1767748248738,-200.0,0.00039209,2]
[400622393,1767748248747,-200.0,0.00039209,2]
[400622395,1767748248756,-200.0,0.00039209,2]
[400622397,1767748248765,-200.0,0.00039209,2]
[400622399,1767748248774,-200.0,0.00039209,2]
[400622400,1767748248784,-200.0,0.00039209,2]
[400622402,1767748248794,-200.0,0.00039209,2]
[400622405,1767748248804,-200.0,0.00039209,2]
[400622407,1767748248814,-200.0,0.00039209,2]
[400622409,1767748248824,-170.0,0.00039209,2]
[400622411,1767748248833,-300.0,0.00039218,2]
[400622413,1767748248843,-300.0,0.00039222,2]
[400622415,1767748248852,-300.0,0.00039222,2]
[400622417,1767748248862,-300.0,0.00039236,2]
[400622419,1767748248872,-300.0,0.00039243,2]
[400622421,1767748248882,-300.0,0.00039265,2]
[400622423,1767748248893,-1000.0,0.00039266,10]
[400622425,1767748248902,-1000.0,0.00039266,10]
[400622427,1767748248912,-356.0,0.00039267,90]
[400622429,1767748248923,-171.0,0.00039267,90]
[400622431,1767748248932,-300.0,0.00039271,2]
[400622433,1767748248941,-300.0,0.0003928,2]
[400622435,1767748248951,-1196.1,0.00039282,6]
[400622437,1767748248961,-690.18605,0.00039288,30]
[400622439,1767748248970,-398.86540225,0.00039288,2]
[400622441,1767748248980,-300.0,0.00039289,2]
[400622443,1767748248989,-300.0,0.000393,2]
[400622445,1767748248998,-34155.87,0.000393,2]
[400622447,1767748249008,-300.0,0.00039305,2]
[400622449,1767748249017,-300.0,0.00039308,2]
[400622451,1767748249027,-300.0,0.00039309,2]
[400622453,1767748249036,-300.0,0.00039334,2]
[400622455,1767748249045,-300.0,0.00039344,2]
[400622456,1767748249055,-237.12745582,0.00039348,120]
[400622458,1767748249064,-300.0,0.0003935,2]
[400622460,1767748249073,-1313.86200646,0.00039353,4]
[400622461,1767748249082,-300.0,0.00039363,2]
[400622463,1767748249091,-150.0,0.00039365,7]
[400622465,1767748249101,-300.0,0.00039373,2]
[400622467,1767748249111,-1000.0,0.00039387,7]
[400622469,1767748249120,-300.0,0.00039395,2]
[400622471,1767748249129,-2131.45675984,0.000394,120]
[400622473,1767748249138,-3424.92,0.000394,30]
[400622475,1767748249148,-728.44,0.000394,30]
[400622477,1767748249157,-300.0,0.00039401,2]
[400622479,1767748249166,-1000.0,0.00039403,10]
[400622481,1767748249175,-1000.0,0.00039403,10]
[400622483,1767748249184,-300.0,0.00039411,2]
[400622485,1767748249194,-300.0,0.00039423,2]
[400622487,1767748249203,-300.0,0.00039432,2]
[400622489,1767748249212,-300.0,0.00039443,2]
[400622491,1767748249221,-300.0,0.00039445,2]
[400622493,1767748249230,-154.38633309,0.00039451,2]
[400622495,1767748249239,-300.0,0.00039456,2]
[400622497,1767748249248,-300.0,0.00039472,2]
[400622499,1767748249258,-690.18605,0.00039488,30]
[400622501,1767748249267,-300.0,0.00039492,2]
[400622503,1767748249276,-300.0,0.00039493,2]
[400622505,1767748249286,-160.0,0.000395,30]
[400622507,1767748249295,-160.0,0.000395,30]
[400622509,1767748249304,-160.0,0.000395,30]
[400622510,1767748249314,-300.0,0.00039513,2]
[400622512,1767748249323,-300.0,0.00039519,2]
[400622514,1767748249333,-300.0,0.00039531,2]
[400622516,1767748249342,-1014.43,0.00039534,14]
[400622518,1767748249352,-1014.43,0.00039534,30]
[400622520,1767748249361,-985.57,0.00039534,2]
[400622522,1767748249371,-1000.0,0.0003954,10]
[400622524,1767748249381,-1000.0,0.0003954,10]
[400622526,1767748249391,-300.0,0.00039551,2]
[400622528,1767748249401,-3424.92,0.000396,30]
[400622530,1767748249411,-1000.0,0.00039677,10]
[400622533,1767748249421,-1000.0,0.00039677,10]
[400622535,1767748249430,-690.18605,0.00039688,30]
[400622536,1767748249439,-152.0,0.00039693,19]
[400622538,1767748249453,-500.0,0.00039699,2]
[400622541,1767748249463,-10000.0,0.000397,15]
[400622543,1767748249473,-851.0,0.000397,2]
[400622545,1767748249482,-600.0,0.000397,2]
[400622547,1767748249492,-978.0,0.000397,2]
[400622549,1767748249501,-918.0,0.000397,2]
[400622551,1767748249511,-1006.08924953,0.00039726,5]
[400622552,1767748249520,-151.0,0.00039797,14]
[400622554,1767748249530,-19641.59618892,0.000398,2]
[400622557,1767748249539,-10000.0,0.000398,30]
[400622558,1767748249549,-1000.0,0.00039814,10]
[400622561,1767748249558,-1000.0,0.00039814,10]
[400622562,1767748249568,-10000.0,0.0003985,14]
[400622564,1767748249577,-151.0,0.0003985,120]
[400622566,1767748249586,-151.0,0.0003985,120]
[400622568,1767748249595,-690.18605,0.00039888,30]
[400622570,1767748249605,-320596.51408153,0.000399,120]
[400622572,1767748249614,-10000.0,0.000399,30]
[400622574,1767748249623,-10000.0,0.000399,14]
[400622576,1767748249632,-5484.0,0.000399,15]
[400622578,1767748249642,-160.558101,0.000399,30]
[400622580,1767748249651,-922.963875,0.000399,120]
[400622582,1767748249662,-151.0,0.000399,120]
[400622584,1767748249671,-226.011011,0.000399,120]
[400622586,1767748249681,-176.251751,0.000399,120]
[400622588,1767748249691,-151.0,0.000399,120]
[400622590,1767748249701,-151.0,0.000399,120]
[400622592,1767748249710,-165.239909,0.000399,120]
[400622594,1767748249719,-151.0,0.000399,120]
[400622596,1767748249730,-1082.496084,0.000399,120]
[400622598,1767748249739,-1082.496084,0.000399,120]
[400622600,1767748249748,-151.0,0.000399,120]
[400622602,1767748249757,-403.910294,0.000399,120]
[400622604,1767748249767,-1082.496084,0.000399,120]
[400622606,1767748249775,-403.910294,0.000399,120]
[400622608,1767748249785,-1082.496084,0.000399,120]
[400622610,1767748249795,-403.910294,0.000399,120]
[400622612,1767748249805,-950.485725,0.000399,120]
[400622614,1767748249815,-403.910294,0.000399,120]
[400622616,1767748249825,-950.485725,0.000399,120]
[400622618,1767748249835,-151.0,0.000399,120]
[400622620,1767748249844,-950.485725,0.000399,120]
[400622622,1767748249854,-950.485725,0.000399,120]
[400622624,1767748249863,-462.543619,0.000399,120]
[400622626,1767748249872,-462.543619,0.000399,120]
[400622628,1767748249882,-462.543619,0.000399,120]
[400622630,1767748249891,-462.543619,0.000399,120]
[400622632,1767748249900,-151.0,0.000399,120]
[400622633,1767748249911,-151.0,0.000399,120]
[400622635,1767748249920,-269.631416,0.000399,120]
[400622637,1767748249929,-151.0,0.000399,120]
[400622640,1767748249939,-185.600499,0.000399,120]
[400622642,1767748249948,-151.0,0.000399,120]
[400622644,1767748249958,-515.531297,0.000399,120]
[400622646,1767748249967,-515.531297,0.000399,120]
[400622647,1767748249976,-515.531297,0.000399,120]
[400622649,1767748249986,-151.0,0.000399,30]
[400622651,1767748249995,-515.531297,0.000399,120]
[400622653,1767748250004,-781.193148,0.000399,45]
[400622655,1767748250013,-781.193148,0.000399,45]
[400622657,1767748250022,-781.193148,0.000399,45]
[400622659,1767748250031,-621.25281,0.000399,120]
[400622661,1767748250040,-781.193148,0.000399,45]
[400622663,1767748250049,-621.25281,0.000399,120]
[400622665,1767748250058,-621.25281,0.000399,120]
[400622667,1767748250068,-621.25281,0.000399,120]
[400622669,1767748250077,-185.220441,0.000399,120]
[400622671,1767748250086,-476.975852,0.000399,120]
[400622673,1767748250095,-476.975852,0.000399,120]
[400622675,1767748250104,-476.975852,0.000399,120]
[400622677,1767748250114,-476.975852,0.000399,120]
[400622679,1767748250124,-168.55207,0.000399,120]
[400622681,1767748250133,-151.0,0.000399,120]
[400622683,1767748250142,-151.0,0.000399,120]
[400622685,1767748250151,-151.0,0.000399,120]
[400622687,1767748250160,-151.0,0.000399,120]
[400622689,1767748250170,-151.0,0.000399,120]
[400622691,1767748250179,-776.255543,0.000399,120]
[400622693,1767748250188,-776.255543,0.000399,120]
[400622695,1767748250197,-776.255543,0.000399,120]
[400622697,1767748250206,-776.255543,0.000399,120]
[400622699,1767748250216,-1000.0,0.000399,7]
[400622701,1767748250225,-363.737796,0.000399,120]
[400622703,1767748250234,-363.737796,0.000399,120]
[400622705,1767748250243,-363.737796,0.000399,120]
[400622707,1767748250253,-363.737796,0.000399,120]
[400622709,1767748250263,-168.087388,0.000399,120]
[400622711,1767748250272,-168.087388,0.000399,120]
[400622713,1767748250281,-168.087388,0.000399,120]
[400622715,1767748250291,-151.0,0.000399,120]
[400622717,1767748250299,-168.087388,0.000399,120]
[400622719,1767748250309,-151.0,0.000399,120]
[400622721,1767748250318,-151.0,0.000399,120]
[400622723,1767748250327,-151.0,0.000399,120]
[400622725,1767748250337,-689.054011,0.000399,120]
[400622727,1767748250346,-689.054011,0.000399,120]
[400622729,1767748250355,-689.054011,0.000399,120]
[400622731,1767748250364,-689.054011,0.000399,120]
[400622733,1767748250374,-151.0,0.000399,120]
[400622735,1767748250383,-1047.174783,0.000399,120]
[400622737,1767748250392,-1047.174783,0.000399,120]
[400622739,1767748250401,-450.244991,0.000399,120]
[400622741,1767748250410,-1047.174783,0.000399,120]
[400622743,1767748250420,-450.244991,0.000399,120]
[400622745,1767748250429,-1047.174783,0.000399,120]
[400622747,1767748250437,-450.244991,0.000399,120]
[400622749,1767748250451,-390.303699,0.000399,120]
[400622751,1767748250460,-450.244991,0.000399,120]
[400622753,1767748250469,-390.303699,0.000399,120]
[400622755,1767748250478,-390.303699,0.000399,120]
[400622756,1767748250488,-390.303699,0.000399,120]
[400622758,1767748250497,-163.515507,0.000399,120]
[400622761,1767748250507,-1355.189766,0.000399,28]
[400622762,1767748250516,-192.660341,0.000399,120]
[400622764,1767748250529,-151.0,0.000399,120]
[400622766,1767748250538,-1355.189766,0.000399,28]
[400622769,1767748250547,-338.307813,0.000399,120]
[400622770,1767748250557,-602.333126,0.000399,120]
[400622772,1767748250566,-151.0,0.000399,120]
[400622774,1767748250576,-1355.189766,0.000399,28]
[400622776,1767748250585,-338.307813,0.000399,120]
[400622778,1767748250594,-602.333126,0.000399,120]
[400622780,1767748250603,-1355.189766,0.000399,28]
[400622782,1767748250612,-338.307813,0.000399,120]
[400622784,1767748250622,-602.333126,0.000399,120]
[400622786,1767748250632,-338.307813,0.000399,120]
[400622788,1767748250641,-602.333126,0.000399,120]
[400622790,1767748250651,-1271.020055,0.000399,120]
[400622792,1767748250660,-1271.020055,0.000399,120]
[400622794,1767748250669,-151.0,0.000399,120]
[400622796,1767748250678,-1271.020055,0.000399,120]
[400622798,1767748250687,-151.0,0.000399,120]
[400622800,1767748250697,-1271.020055,0.000399,120]
[400622802,1767748250706,-151.0,0.000399,120]
[400622804,1767748250715,-3207.086174,0.000399,120]
[400622806,1767748250725,-1016.122291,0.000399,120]
[400622808,1767748250735,-3207.086174,0.000399,120]
[400622810,1767748250744,-151.0,0.000399,120]
[400622812,1767748250753,-1016.122291,0.000399,120]
[400622814,1767748250763,-3207.086174,0.000399,120]
[400622816,1767748250772,-151.0,0.000399,120]
[400622818,1767748250782,-1016.122291,0.000399,120]
[400622820,1767748250791,-301.240145,0.000399,120]
[400622822,1767748250800,-225.397042,0.000399,120]
[400622824,1767748250811,-3207.086174,0.000399,120]
[400622826,1767748250821,-1016.122291,0.000399,120]
[400622827,1767748250829,-301.240145,0.000399,120]
[400622828,1767748250839,-151.0,0.000399,120]
[400622829,1767748250848,-301.240145,0.000399,120]
[400622830,1767748250857,-151.0,0.000399,120]
[400622831,1767748250866,-301.240145,0.000399,120]
[400622832,1767748250875,-151.0,0.000399,120]
[400622833,1767748250884,-151.0,0.000399,120]
[400622834,1767748250893,-151.0,0.000399,120]
[400622835,1767748250902,-151.0,0.000399,120]
[400622847,1767748251081,-10000.0,0.0003995,14]
[400622849,1767748251092,-1000.0,0.00039951,10]
[400622851,1767748251101,-1000.0,0.00039951,10]
[400622853,1767748251110,-507.23,0.00039999,30]
[400622855,1767748251120,-3852.14934411,0.00039999,2]
[400622857,1767748251129,-646.80498663,0.00039999,31]
[400622859,1767748251138,-500.0,0.00039999,31]
[400622861,1767748251147,-500.0,0.00039999,31]
[400622862,1767748251157,-500.0,0.00039999,31]
[400622864,1767748251166,-161.52328362,0.00039999,15]
[400622867,1767748251177,-158.7419908,0.00039999,31]
[400622869,1767748251187,-500.0,0.00039999,31]
[400622871,1767748251196,-500.0,0.00039999,31]
[400622873,1767748251205,-396.29722825,0.00039999,31]
[400622874,1767748251215,-500.0,0.00039999,31]
[400622877,1767748251225,-602.64326461,0.0004,5]
[400622879,1767748251235,-875.0,0.0004,2]
[400622880,1767748251244,-152.0,0.0004,120]
[400622882,1767748251254,-250.0,0.0004,45]
[400622885,1767748251263,-152.0,0.0004,120]
[400622887,1767748251273,-715.49149987,0.0004,2]
[400622888,1767748251282,-717.80445789,0.0004,60]
[400622890,1767748251291,-499.999999,0.0004,120]
[400622893,1767748251301,-300.32686327,0.0004,120]
[400622895,1767748251310,-1479.41882164,0.0004,30]
[400622897,1767748251320,-1019.39104929,0.0004,20]
[400622899,1767748251330,-800.57995898,0.0004,120]
[400622901,1767748251339,-1604.9734059,0.0004,30]
[400622903,1767748251349,-497.31948366,0.0004,30]
[400622905,1767748251359,-390.25,0.0004,2]
[400622907,1767748251368,-919.53,0.0004,12]
[400622909,1767748251378,-6881.57553932,0.0004,30]
[400622911,1767748251387,-1194.34640566,0.0004,30]
[400622913,1767748251397,-209.72935748,0.0004,30]
[400622915,1767748251406,-541.0,0.0004,120]
[400622917,1767748251415,-1043.44170185,0.0004,14]
[400622919,1767748251425,-1030.62487221,0.0004,30]
[400622920,1767748251434,-911.43877694,0.0004,30]
[400622923,1767748251445,-2500.0,0.0004,7]
[400622924,1767748251465,-201.16863243,0.0004,120]
[400622926,1767748251475,-500.0,0.0004,120]
[400622928,1767748251484,-250.0,0.0004,45]
[400622930,1767748251493,-250.0,0.0004,45]
[400622933,1767748251503,-250.0,0.0004,45]
[400622935,1767748251513,-250.0,0.0004,45]
[400622937,1767748251522,-250.0,0.0004,45]
[400622938,1767748251531,-250.0,0.0004,45]
[400622941,1767748251540,-250.0,0.0004,45]
[400622942,1767748251549,-250.0,0.0004,45]
[400622944,1767748251558,-250.0,0.0004,45]
[400622946,1767748251567,-250.0,0.0004,45]
[400622948,1767748251576,-250.0,0.0004,45]
[400622950,1767748251585,-250.0,0.0004,45]
[400622952,1767748251595,-160.0,0.0004,33]
[400622954,1767748251605,-160.0,0.0004,33]
[400622956,1767748251614,-160.0,0.0004,33]
[400622958,1767748251623,-160.0,0.0004,33]
[400622960,1767748251632,-160.0,0.0004,33]
[400622962,1767748251642,-160.0,0.0004,33]
[400622964,1767748251651,-160.0,0.0004,33]
[400622966,1767748251661,-208.2,0.0004,33]
[400622968,1767748251671,-5050.78965412,0.0004,12]
[400622970,1767748251680,-5072.62720457,0.0004,13]
[400622972,1767748251689,-250.0,0.0004,45]
[400622974,1767748251698,-34155.87,0.0004,2]
[400622976,1767748251707,-151.0,0.0004,120]
[400622978,1767748251717,-252.95693,0.0004,120]
[400622980,1767748251726,-252.95693,0.0004,120]
[400622982,1767748251736,-165.986845,0.0004,120]
[400622984,1767748251745,-252.95693,0.0004,120]
[400622986,1767748251754,-165.986845,0.0004,120]
[400622988,1767748251763,-252.95693,0.0004,120]
[400622990,1767748251772,-165.986845,0.0004,120]
[400622992,1767748251781,-165.986845,0.0004,120]
[400622994,1767748251790,-740.418108,0.0004,120]
[400622996,1767748251806,-740.418108,0.0004,120]
[400622998,1767748251815,-151.0,0.0004,120]
[400622999,1767748251826,-740.418108,0.0004,120]
[400623001,1767748251835,-151.0,0.0004,30]
[400623003,1767748251845,-740.418108,0.0004,120]
[400623005,1767748251854,-796.291221,0.0004,120]
[400623007,1767748251863,-172.214372,0.0004,120]
[400623009,1767748251872,-796.291221,0.0004,120]
[400623011,1767748251881,-151.0,0.0004,120]
[400623013,1767748251891,-796.291221,0.0004,120]
[400623015,1767748251900,-796.291221,0.0004,120]
[400623017,1767748251909,-455.956851,0.0004,120]
[400623019,1767748251918,-151.0,0.0004,120]
[400623021,1767748251927,-455.956851,0.0004,120]
[400623023,1767748251937,-151.0,0.0004,120]
[400623025,1767748251946,-151.0,0.0004,120]
[400623027,1767748251955,-455.956851,0.0004,120]
[400623029,1767748251965,-151.0,0.0004,120]
[400623031,1767748251974,-151.0,0.0004,120]
[400623033,1767748251983,-455.956851,0.0004,120]
[400623035,1767748251992,-151.0,0.0004,120]
[400623037,1767748252001,-252.933924,0.0004,120]
[400623039,1767748252010,-1018.0,0.0004,30]
[400623041,1767748252020,-2984.06,0.0004,30]
[400623043,1767748252028,-690.18605,0.00040088,30]
[400623045,1767748252038,-1531.04,0.00040111,120]
[400623047,1767748252047,-151.0,0.00040129,120]
[400623049,1767748252056,-553.936437,0.00040129,120]
[400623051,1767748252065,-553.936437,0.00040129,120]
[400623053,1767748252074,-553.936437,0.00040129,120]
[400623055,1767748252084,-553.936437,0.00040129,120]
[400623057,1767748252093,-255.65421,0.00040129,30]
[400623058,1767748252102,-255.65421,0.00040129,30]
[400623060,1767748252111,-255.65421,0.00040129,30]
[400623062,1767748252121,-255.65421,0.00040129,30]
[400623064,1767748252131,-211.015066,0.00040129,120]
[400623066,1767748252140,-894.704058,0.00040129,120]
[400623068,1767748252149,-2118.512815,0.00040129,120]
[400623070,1767748252158,-211.015066,0.00040129,120]
[400623072,1767748252168,-894.704058,0.00040129,120]
[400623074,1767748252177,-2118.512815,0.00040129,120]
[400623076,1767748252186,-211.015066,0.00040129,120]
[400623078,1767748252196,-894.704058,0.00040129,120]
[400623080,1767748252205,-2118.512815,0.00040129,120]
[400623082,1767748252214,-211.015066,0.00040129,120]
[400623084,1767748252224,-894.704058,0.00040129,120]
[400623086,1767748252233,-2118.512815,0.00040129,120]
[400623088,1767748252243,-151.0,0.00040129,120]
[400623090,1767748252252,-151.0,0.00040129,120]
[400623092,1767748252261,-213.64113,0.00040129,120]
[400623093,1767748252270,-859.589787,0.00040129,2]
[400623094,1767748252280,-213.64113,0.00040129,120]
[400623095,1767748252289,-151.0,0.00040129,7]
[400623096,1767748252298,-859.589787,0.00040129,2]
[400623097,1767748252308,-213.64113,0.00040129,120]
[400623098,1767748252317,-878.570174,0.00040129,120]
[400623099,1767748252327,-151.0,0.00040129,7]
[400623100,1767748252337,-859.589787,0.00040129,2]
[400623101,1767748252346,-213.64113,0.00040129,120]
[400623102,1767748252356,-878.570174,0.00040129,120]
[400623103,1767748252366,-151.0,0.00040129,7]
[400623104,1767748252376,-324.639691,0.00040129,120]
[400623105,1767748252386,-859.589787,0.00040129,2]
[400623106,1767748252395,-183.978442,0.00040129,120]
[400623107,1767748252404,-878.570174,0.00040129,120]
[400623108,1767748252414,-324.639691,0.00040129,120]
[400623109,1767748252423,-151.0,0.00040129,7]
[400623110,1767748252433,-162.48922,0.00040129,120]
[400623111,1767748252442,-183.978442,0.00040129,120]
[400623112,1767748252456,-878.570174,0.00040129,120]
[400623113,1767748252465,-324.639691,0.00040129,120]
[400623114,1767748252474,-162.48922,0.00040129,120]
[400623115,1767748252484,-183.978442,0.00040129,120]
[400623116,1767748252494,-324.639691,0.00040129,120]
[400623118,1767748252504,-162.48922,0.00040129,120]
[400623120,1767748252512,-183.978442,0.00040129,120]
[400623121,1767748252524,-162.48922,0.00040129,120]
[400623122,1767748252534,-203.652156,0.00040129,120]
[400623123,1767748252543,-255.873066,0.00040129,120]
[400623124,1767748252552,-203.652156,0.00040129,120]
[400623125,1767748252562,-203.652156,0.00040129,120]
[400623126,1767748252571,-203.652156,0.00040129,120]
[400623128,1767748252580,-185.189839,0.00040129,120]
[400623130,1767748252590,-151.0,0.00040129,120]
[400623131,1767748252599,-151.0,0.00040129,120]
[400623132,1767748252609,-309.814225,0.00040129,120]
[400623133,1767748252619,-424.648875,0.00040129,120]
[400623134,1767748252628,-309.814225,0.00040129,120]
[400623135,1767748252638,-424.648875,0.00040129,120]
[400623136,1767748252648,-309.814225,0.00040129,120]
[400623137,1767748252657,-160.872111,0.00040129,120]
[400623138,1767748252667,-424.648875,0.00040129,120]
[400623139,1767748252677,-309.814225,0.00040129,120]
[400623141,1767748252686,-160.872111,0.00040129,120]
[400623143,1767748252696,-424.648875,0.00040129,120]
[400623144,1767748252706,-160.872111,0.00040129,120]
[400623146,1767748252715,-160.872111,0.00040129,120]
[400623148,1767748252725,-152.670524,0.00040129,120]
[400623150,1767748252736,-152.670524,0.00040129,120]
[400623152,1767748252746,-152.670524,0.00040129,120]
[400623154,1767748252755,-152.670524,0.00040129,120]
[400623156,1767748252765,-398.259008,0.00040129,120]
[400623158,1767748252774,-398.259008,0.00040129,120]
[400623160,1767748252784,-398.259008,0.00040129,120]
[400623162,1767748252794,-398.259008,0.00040129,120]
[400623164,1767748252803,-151.0,0.00040129,120]
[400623165,1767748252813,-30513.69867585,0.00040129,5]
[400623166,1767748252822,-152.0,0.00040196,20]
[400623168,1767748252832,-690.18605,0.00040288,30]
[400623169,1767748252842,-599.84,0.00040375,120]
[400623170,1767748252851,-573.995519,0.00040407,120]
[400623171,1767748252860,-573.995519,0.00040407,120]
[400623172,1767748252870,-573.995519,0.00040407,120]
[400623173,1767748252879,-573.995519,0.00040407,120]
[400623174,1767748252888,-431.665995,0.00040407,120]
[400623175,1767748252897,-431.665995,0.00040407,120]
[400623176,1767748252906,-431.665995,0.00040407,120]
[400623177,1767748252914,-431.665995,0.00040407,120]
[400623178,1767748252923,-954.298236,0.00040407,120]
[400623179,1767748252932,-954.298236,0.00040407,120]
[400623180,1767748252941,-954.298236,0.00040407,120]
[400623181,1767748252949,-954.298236,0.00040407,120]
[400623182,1767748252959,-150.0,0.00040407,2]
[400623183,1767748252968,-200.0,0.00040407,2]
[400623184,1767748252978,-265.0,0.00040407,2]
[400623185,1767748252987,-212.0,0.00040407,2]
[400623186,1767748252996,-250.0,0.00040407,2]
[400623187,1767748253005,-214.912,0.00040407,2]
[400623188,1767748253015,-225.996,0.00040407,2]
[400623189,1767748253024,-250.0,0.00040407,2]
[400623190,1767748253034,-157.238,0.00040407,2]
[400623191,1767748253044,-297.977,0.00040407,2]
[400623192,1767748253053,-250.0,0.00040407,2]
[400623193,1767748253063,-211.897,0.00040407,2]
[400623194,1767748253072,-250.0,0.00040407,2]
[400623195,1767748253085,-227.625,0.00040407,2]
[400623196,1767748253094,-168.0,0.00040407,2]
[400623197,1767748253104,-1329.0,0.00040407,2]
[400623198,1767748253114,-614.0,0.00040407,2]
[400623199,1767748253125,-3481.3,0.00040407,2]
[400623200,1767748253134,-1405.0,0.00040407,2]
[400623201,1767748253144,-1266.0,0.00040407,2]
[400623202,1767748253153,-914.0,0.00040407,2]
[400623203,1767748253163,-1215.798,0.00040407,2]
[400623204,1767748253172,-505.0,0.00040429,14]
[400623205,1767748253181,-4287.32039615,0.00040485,15]
[400623206,1767748253190,-690.18605,0.00040488,30]
[400623207,1767748253200,-1859.65645264,0.00040495,15]
[400623208,1767748253210,-250.0,0.000405,45]
[400623209,1767748253219,-7004.8462969,0.000405,3]
[400623210,1767748253228,-160.0,0.000405,35]
[400623211,1767748253237,-160.0,0.000405,35]
[400623212,1767748253247,-160.0,0.000405,35]
[400623213,1767748253256,-160.0,0.000405,35]
[400623214,1767748253265,-498.2117935,0.000405,30]
[400623215,1767748253275,-191.17781272,0.000405,45]
[400623216,1767748253285,-934.94099794,0.00040588,2]
[400623217,1767748253294,-152.0,0.000406,120]
[400623218,1767748253304,-8732.20070403,0.0004062,7]
[400623219,1767748253314,-690.18605,0.00040688,30]
[400623220,1767748253324,-1633.13,0.00040691,58]
[400623221,1767748253334,-152.0,0.00040699,21]
[400623222,1767748253343,-152.0,0.000407,120]
[400623223,1767748253353,-6156.0,0.000407,117]
[400623224,1767748253363,-2435.0,0.00040715,2]
[400623225,1767748253372,-4817.0,0.00040715,2]
[400623226,1767748253382,-565.0,0.00040715,2]
[400623227,1767748253391,-152.98,0.00040732,120]
[400623228,1767748253401,-500.0,0.00040821,120]
[400623229,1767748253410,-500.0,0.00040821,120]
[400623230,1767748253419,-500.0,0.00040821,120]
[400623231,1767748253430,-500.0,0.00040821,120]
[400623232,1767748253441,-500.0,0.00040821,120]
[400623233,1767748253455,-500.0,0.00040821,120]
[400623234,1767748253464,-500.0,0.00040821,120]
[400623235,1767748253475,-500.0,0.00040821,120]
[400623236,1767748253484,-500.0,0.00040821,120]
[400623237,1767748253495,-500.0,0.00040821,120]
[400623238,1767748253505,-500.0,0.00040821,120]
[400623239,1767748253514,-500.0,0.00040821,120]
[400623240,1767748253525,-205.461604,0.00040821,120]
[400623241,1767748253534,-152.98,0.00040832,120]
[400623242,1767748253543,-690.18605,0.00040888,30]
[400623243,1767748253553,-152.98,0.00040932,120]
[400623244,1767748253562,-177.16389542,0.00040968,8]
[400623245,1767748253572,-922.03540995,0.00040968,2]
[400623246,1767748253583,-164.47728644,0.00040968,2]